Cogmind - Beta 16.1 *** ADVENTURER MODE // 2026.02.16 @ 10:06:08 Player: Jefffff Result: Destroyed by IW-NRC(z) with Makeshift Shrapnel Gun Performance ------------- Evolutions (4) 2000 Regions Visited (10) 2000 Robots Destroyed (71) 355 Value Destroyed (2735) 2735 Prototype IDs (2) 40 Alien Tech Used (0) 0 Bonus (1305) 1305 TOTAL SCORE: 8435 Bonus ------- High Alert Combat Kills 21 Follower Combat Kills 704 Registered with UFD 300 Met Imprinter 300 Friendly Fire -20 Cogmind --------- Core Integrity 0/850 Matter 114/300 Energy 70/100 System Corruption 2% Temperature Cool (0) Movement Rolling (195) Ox7 Location -6/Zion Parts ------- > --- POWER (2) -------- (None) > --- PROPULSION (4) --- Armored Wheel Gravmag System Improved Gravmag System > --- UTILITY (6) ------ Huge Storage Unit 0b10 Decoder Chip [Scout] Improved Dynamic Insulation System > --- WEAPON (3) ------- Phasing Sabre > --- INVENTORY (25) --- Light Angular Momentum Engine Faulty F-cell Engine Makeshift Leg Improved Airjet Improved Power Shielding Damper Plating Makeshift Hacking Suite Makeshift Hacking Suite Beamcaster CR-A16's Pointy Stick Peak State ------------ > --- POWER ------------ Nuclear Core Neutrino Core > --- PROPULSION ------- Flexi-carbon Leg Armored Leg Armored Leg Armored Leg > --- UTILITY ---------- Advanced Heat Sink Huge Storage Unit 0b10 Decoder Chip [Scout] Thermal Shield Dynamic Insulation System Improved Dynamic Insulation System > --- WEAPON ----------- Heavy Beamcaster Heavy Machine Gun Bore Cannon > --- INVENTORY -------- Angular Momentum Engine Light Angular Momentum Engine F-cell Engine Neutrino Core Carbon-fiber Leg Flexi-carbon Leg Armored Leg Gravmag System Improved Airjet Improved Gravmag System Matter Filter Improved Power Shielding Improved Medium Armor Plating Layered Light Armor Plating Damper Plating Improved Thermal Shield Makeshift Hacking Suite Makeshift Hacking Suite Heavy Missile Launcher Phasing Sabre CR-A16's Pointy Stick [Rating: 82] Favorites ----------- Power Deuterium Engine Engine Deuterium Engine Power Core Neutrino Core Propulsion Armored Leg Leg Armored Leg Wheel Compact Wheel Hover Unit Gravmag System Utility Huge Storage Unit Device Advanced Heat Sink Storage Huge Storage Unit Processor 0b10 Decoder Chip [Scout] Protection Layered Medium Armor Plating Weapon Battle Cannon Energy Gun Heavy Beamcaster Energy Cannon Proton Cannon Ballistic Gun Heavy Machine Gun Ballistic Cannon Battle Cannon Launcher Heavy Missile Launcher Impact Weapon Heavy Flail Slashing Weapon Phasing Sabre Build | -11 -10 -10 -8 -8 -6 -6 -6 -6 -6 -6 ------- Run | Yrd Mat Sub Rec Scr Fac Was Fac Low Low Zio Slots Evolved 8 | . . . . . 8 . . . . . Power 1 | . . . . . 1 . . . . . Propulsion 2 | . . . . . 2 . . . . . Utility 4 | . . . . . 4 . . . . . Weapon 1 | . . . . . 1 . . . . . Parts Attached 80 | 6 3 6 7 6 6 . 7 2 14 23 Power 13 | 1 . 1 1 1 1 . 2 . 2 4 Engine 7 | 1 . 1 . 1 1 . 1 . . 2 Core 6 | . . . 1 . . . 1 . 2 2 Reactor . | . . . . . . . . . . . Propulsion 24 | 2 . . 4 3 . . 1 . 4 10 Treads . | . . . . . . . . . . . Leg 12 | . . . 1 . . . . . 4 7 Wheel 10 | 2 . . 3 3 . . . . . 2 Hover 2 | . . . . . . . 1 . . 1 Flight . | . . . . . . . . . . . Utility 24 | 1 3 1 . 1 4 . 3 2 4 5 Device 13 | . 1 . . . 4 . 2 1 2 3 Storage 3 | 1 2 . . . . . . . . . Processor 2 | . . . . . . . . 1 1 . Hackware . | . . . . . . . . . . . Protection 6 | . . 1 . 1 . . 1 . 1 2 Artifact . | . . . . . . . . . . . Weapon 19 | 2 . 4 2 1 1 . 1 . 4 4 Energy Gun 1 | . . . . . . . . . . 1 Energy Cannon 5 | . . 1 . . 1 . 1 . 2 . Ballistic Gun 3 | 2 . . . . . . . . 1 . Ballistic Cannon 7 | . . 3 2 1 . . . . . 1 Launcher 1 | . . . . . . . . . . 1 Special Weapon . | . . . . . . . . . . . Impact Weapon 1 | . . . . . . . . . 1 . Slashing Weapon 1 | . . . . . . . . . . 1 Piercing Weapon . | . . . . . . . . . . . Special Melee Weapon . | . . . . . . . . . . . Unidentified Prototypes . | . . . . . . . . . . . Parts Lost 33 | . . 1 1 . . . 1 . 7 23 Power 7 | . . . . . . . . . 2 5 Propulsion 13 | . . 1 1 . . . . . 3 8 Utility 7 | . . . . . . . 1 . . 6 Weapon 6 | . . . . . . . . . 2 4 Highest Loss Streak 12 | . . 1 1 . . . 1 . 7 12 To Critical Strikes 1 | . . . . . . . . . 1 . Average Backups 22 | 1 10 23 24 24 18 22 21 22 21 20 Power 4 | . 2 5 5 5 4 6 5 5 4 3 Propulsion 5 | 1 3 5 4 4 3 4 6 8 6 5 Utility 6 | . 1 3 5 8 6 7 6 6 8 8 Weapon 5 | . 3 8 8 5 3 3 3 3 2 2 Tool/Special . | . . . . . . . . . . . Unused Backups 52 | . . . 2 19 . 2 13 . 4 12 Power 12 | . . . 1 5 . . 2 . 1 3 Propulsion 11 | . . . . 4 . . 6 . . 1 Utility 15 | . . . 1 3 . 1 4 . 2 4 Weapon 13 | . . . . 7 . 1 . . 1 4 Tool/Special 1 | . . . . . . . 1 . . . Average Slot Usage (%) 99 | . 98 98 100 100 97 100 98 100 99 95 Engine 7 | . 14 14 1 10 13 13 9 6 1 . Core 5 | . . . 12 3 . . 2 6 10 11 Leg 7 | . . . 4 . . . . . 25 24 Wheel 19 | . 28 27 23 28 25 26 26 26 . . Device 12 | . 12 11 . . 24 26 24 23 22 23 Storage 10 | . 14 14 14 14 6 6 6 6 6 6 Processor 2 | . . . . . . . . 2 7 6 Protection 6 | . . 2 14 14 6 6 6 6 2 . Energy Cannon 4 | . . 6 . . 5 6 6 6 13 2 Ballistic Gun 3 | . 28 7 . . . . . . 4 4 Ballistic Cannon 14 | . . 14 28 28 13 13 13 13 . 3 Peak Build Rating 82 | 6 10 15 17 25 43 46 57 58 77 82 Average Rating 39 | 4 8 11 16 21 40 43 49 57 75 75 On Entrance 31 | . 6 10 14 17 23 43 46 56 58 77 Avg Prop Armor Cover (%) 9 | . . . 6 . . . . . . 14 Naked Turns . | . . . . . . . . . . . Heaviest Build 137 | 14 89 95 95 104 123 123 135 131 137 127 Greatest Support 71 | 32 38 38 26 28 50 50 50 50 68 71 Greatest Overweight (x) 9 | . 2 5 9 4 2 2 2 2 2 7 Average Overweight (x) 2 | . 1 2 4 3 2 2 2 2 1 1 Largest Inventory Capacity 25 | 8 25 25 25 25 25 25 25 25 25 25 Average Capacity 24 | 6 20 25 25 25 25 25 25 25 25 25 Most Carried 25 | 3 22 25 25 25 24 25 25 25 25 25 Average Carried 23 | 1 11 23 24 24 18 23 24 25 24 23 Final Capacity 25 | 8 25 25 25 25 25 25 25 25 25 25 Final Carried 25 | 3 22 25 25 25 22 25 25 25 25 13 Class Distribution -------------------- 38% | Mutant 33% | Derelict-Tank 23% | Derelict-Mutant 3% | Derelict-Gunner Dominant Class ---------------- Mutant | -10/Materials Mutant | -10/Subcaves Mutant | -8/Recycling Derelict-Mutant | -8/Scraptown Derelict-Gunner | -6/Factory Derelict-Gunner | -6/Waste Derelict-Tank | -6/Factory Derelict-Tank | -6/Lower Caves Derelict-Tank | -6/Lower Caves Derelict-Tank | -6/Zion Resources | -11 -10 -10 -8 -8 -6 -6 -6 -6 -6 -6 ----------- Run | Yrd Mat Sub Rec Scr Fac Was Fac Low Low Zio Matter Collected 2105 | 117 159 639 174 96 . 80 160 190 165 325 Remotely 197 | . . . . . . . . . 90 107 Salvage Created 3088 | . 201 509 249 . . 205 261 782 458 423 Parts 152 | . 18 35 14 . . . 10 33 24 18 Haulers Intercepted 2 | . 1 . . . . . 1 . . . Recyclers Shooed . | . . . . . . . . . . . Parts Field Recycled . | . . . . . . . . . . . Retrieved Matter . | . . . . . . . . . . . Parts Self-Destructed 59 | . . 9 . . . . . 35 15 . Prevented 6 | . . . . . . . . . 6 . Parts Restored . | . . . . . . . . . . . Kills | -11 -10 -10 -8 -8 -6 -6 -6 -6 -6 -6 ------- Run | Yrd Mat Sub Rec Scr Fac Was Fac Low Low Zio Combat Hostiles Destroyed 58 | . 4 15 4 . . . 5 15 7 8 Guns 10 | . 4 4 . . . . . . . 2 Cannons 42 | . . 11 4 . . . 4 14 5 4 AOE 3 | . . . . . . . . . 1 2 Classes Destroyed 18 | . 4 2 2 . . . 3 . 3 4 Worker 1 | . . . . . . . 1 . . . Hauler 2 | . 1 . . . . . 1 . . . Recycler 2 | . . . 2 . . . . . . . Turret 2 | . . 2 . . . . . . . . Watcher 2 | . 2 . . . . . . . . . Swarmer 15 | . 2 4 . . . . 1 8 . . Grunt 12 | . 2 . . . . . 1 5 4 . Duelist 1 | . . . . . . . 1 . . . Sentry 6 | . . . 4 . . . 1 1 . . Hunter 2 | . . . . . . . . . 2 . Programmer 2 | . . . . . . . 1 1 . . Behemoth 1 | . . . . . . . . . 1 . Subdweller 11 | . . 11 . . . . . . . . Zionite 4 | . . . . . . . . . . 4 Samaritan 1 | . . . . . . . . . 1 . Tinkerer 1 | . . . . . . . . . . 1 Thug 2 | . . . . . . . . . . 2 Butcher 1 | . . . . . . . . . . 1 Fireman 2 | . . . . . . . . . . 2 Mutant 3 | . . . . . . . . . . 3 Best Kill Streak 10 | . 3 5 3 . . . 2 4 4 10 Combat Bots Only 8 | . 3 4 1 . . . 2 4 4 8 Max Kills in Single Turn 3 | . 1 1 1 . . . 1 1 1 3 Gunslinging . | . . . . . . . . . . . Exploded 2 | . . . . . . . . . 1 2 Melee . | . . . . . . . . . . . Uniques/NPCs Destroyed . | . . . . . . . . . . . Combat | -11 -10 -10 -8 -8 -6 -6 -6 -6 -6 -6 -------- Run | Yrd Mat Sub Rec Scr Fac Was Fac Low Low Zio Hostile Shots Fired 684 | . 14 94 27 . . . 6 45 104 394 Missed 212 | . 5 38 10 . . . . 17 28 114 Hits 472 | . 9 56 17 . . . 6 28 76 280 Melee 42 | . . . . . . . . . . 42 Projectile 430 | . 9 56 17 . . . 6 28 76 238 Critical Strikes 21 | . . 1 2 . . . 1 . 5 12 Part Disruptions 2 | . . . . . . . . . . 2 Actively Blocked 2 | . . . . . . . . . . 2 Damage Taken 6252 | . 71 695 180 . . . 262 381 1104 3559 Core 970 | . 13 69 35 . . . 11 37 135 670 Absorbed by Shields . | . . . . . . . . . . . Ignored by Resistances 1949 | . 23 203 72 . . . 75 111 304 1161 Regen/Repaired (Parts) 263 | . . . . . . 15 97 125 . 26 Core Remaining (%) 76 | 100 . . . 53 . . . . . . Volleys Fired 200 | . 15 79 15 . . 3 18 28 22 20 Largest 3 | . 2 2 2 . . 3 3 3 3 3 Hottest 245 | . 40 90 63 . . 126 126 156 245 159 Shots Fired 448 | . 30 150 30 . . 9 54 84 45 46 Gun 114 | . 30 58 . . . . . . . 26 Cannon 330 | . . 92 30 . . 9 54 84 45 16 Launcher 4 | . . . . . . . . . . 4 Special . | . . . . . . . . . . . Kinetic 324 | . 30 128 30 . . 6 36 56 12 26 Thermal 106 | . . 22 . . . 3 18 28 19 16 Explosive 4 | . . . . . . . . . . 4 Electromagnetic 14 | . . . . . . . . . 14 . Robot Hit Streak 23 | . 15 23 20 . . 12 13 19 11 10 Robot Miss Streak 5 | . 1 2 2 . . . 3 5 3 5 Penetration Max 2 | . . . . . . . . . . 2 Secondary Targets 1 | . 1 . . . . . . . . . Max Gunslinging Chain 1 | . 1 . . . . . . . . . Shots Hit Robots 263 | . 22 66 25 . . 9 32 40 33 36 Core Hits 124 | . 10 28 7 . . 3 16 23 13 24 Critical Kills 8 | . . . . . . . 1 1 2 4 Critical Parts Destroyed 5 | . . . . . . . . . . 5 Critical Strikes 18 | . . 2 . . . . 1 2 3 10 Meltdown 4 | . . . . . . . 1 1 2 . Destroy 9 | . . . . . . . . . . 9 Blast 4 | . . 2 . . . . . 1 1 . Sever 1 | . . . . . . . . . . 1 Melee Attacks 8 | . . . . . . . . . . 8 Impact . | . . . . . . . . . . . Slashing 8 | . . . . . . . . . . 8 Piercing . | . . . . . . . . . . . Sneak Attacks . | . . . . . . . . . . . Combat Hostiles . | . . . . . . . . . . . Follow-up Attacks . | . . . . . . . . . . . Damage Inflicted 6219 | . 286 1076 465 . . 177 642 1130 913 1530 Guns 1021 | . 286 280 . . . . . . . 455 Cannons 4398 | . . 796 465 . . 177 642 1130 851 337 Explosions 498 | . . . . . . . . . 62 436 Melee 302 | . . . . . . . . . . 302 Ramming . | . . . . . . . . . . . Kinetic 3217 | . 286 828 465 . . 119 391 447 117 564 Thermal 1955 | . . 248 . . . 58 251 683 487 228 Explosive 436 | . . . . . . . . . . 436 Electromagnetic 309 | . . . . . . . . . 309 . Impact . | . . . . . . . . . . . Slashing 302 | . . . . . . . . . . 302 Piercing . | . . . . . . . . . . . Highest Corruption 2 | . . . . . . . . . . 2 Average Corruption 1 | . . . . . . . . . . 1 Corruption Purged . | . . . . . . . . . . . Corruption Blocked . | . . . . . . . . . . . Effects 4 | . . . . . . . . . . 4 Message Errors 1 | . . . . . . . . . . 1 Matter Fused 1 | . . . . . . . . . . 1 Parts Rejected 1 | . . . . . . . . . . 1 Data Loss (minor) 1 | . . . . . . . . . . 1 Overload Shots . | . . . . . . . . . . . Overflow Damage 156 | . . 7 17 . . . 3 76 . 53 Projectiles 129 | . . 7 17 . . . 3 76 . 26 Explosions . | . . . . . . . . . . . Melee 27 | . . . . . . . . . . 27 Knockbacks 19 | . . 5 1 . . . 4 4 2 3 Impact . | . . . . . . . . . . . Kinetic 18 | . . 5 1 . . . 3 4 2 3 Secondary 1 | . . . . . . . 1 . . . Self-Inflicted Damage 32 | . . . . . . . . . 32 . Shots 1 | . . . . . . . . . 1 . Rammed . | . . . . . . . . . . . Targets Rammed . | . . . . . . . . . . . Kicked . | . . . . . . . . . . . Crushed . | . . . . . . . . . . . Highest Temperature 709 | . 2 2 119 . . 135 128 268 474 709 Average Temperature 154 | . 2 2 44 . . 72 55 50 160 378 Received Heat Transfer 1933 | . 30 237 108 . . . 45 123 288 1102 Effects 35 | . . . . . . . . . 5 30 Shutdowns 10 | . . . . . . . . . 1 9 Energy Bleed 3 | . . . . . . . . . . 3 Interference 8 | . . . . . . . . . 4 4 Matter Decay 4 | . . . . . . . . . . 4 Short Circuit 3 | . . . . . . . . . . 3 Damage (minor) 5 | . . . . . . . . . . 5 Damage (major) 1 | . . . . . . . . . . 1 Damage (core) 1 | . . . . . . . . . . 1 Siege Activations . | . . . . . . . . . . . Martial Activations . | . . . . . . . . . . . Shielding Activations . | . . . . . . . . . . . Robots Disrupted . | . . . . . . . . . . . Combat Hostiles . | . . . . . . . . . . . Robots Corrupted . | . . . . . . . . . . . Combat Hostiles . | . . . . . . . . . . . Parts Fried 1 | . . . . . . . . . 1 . Impact Corruptions . | . . . . . . . . . . . Robots Melted 4 | . . . . . . . 1 1 2 . Combat Hostiles 3 | . . . . . . . 1 1 1 . Parts Melted 12 | . . . . . . . 4 3 5 . Heat Transferred 3317 | . . 518 . . . 111 481 1050 750 407 Parts Sabotaged . | . . . . . . . . . . . Parts Stolen . | . . . . . . . . . . . Parts Stripped . | . . . . . . . . . . . Power Chain Reactions 1 | . . . . . . . . . 1 . Alert | -11 -10 -10 -8 -8 -6 -6 -6 -6 -6 -6 ------- Run | Yrd Mat Sub Rec Scr Fac Was Fac Low Low Zio Maximum Alert Level 2 | . . . . . . . 2 . . . Low Security (%) 85 | 100 100 . 100 . 100 100 36 . . . Level 1 7 | . . . . . . . 32 . . . Level 2 7 | . . . . . . . 30 . . . Level 3 . | . . . . . . . . . . . Level 4 . | . . . . . . . . . . . Level 5 . | . . . . . . . . . . . High Security . | . . . . . . . . . . . Max Security . | . . . . . . . . . . . Peak Influence 507 | . 95 . 21 . 94 18 507 . . . Initial 18 | . . . 1 . . 18 . . . . Average 78 | . 34 . 2 . 24 3 302 . . . Influence Increases 1963 | . 143 135 97 . 104 . 810 501 173 . Destroy 0b10 Robot/C 1220 | . 80 120 80 . 80 . 360 360 140 . Destroy 0b10 Robot/NC 60 | . 15 . 10 . . . 35 . . . Destroy Leader 186 | . 26 . . . 10 . 90 30 30 . Allied During Kill 275 | . . . . . 5 . 216 51 3 . Successful Hack 12 | . 7 . 5 . . . . . . . Disable Machine 108 | . . . . . 9 . 99 . . . Destroy Structure 12 | . . . 2 . . . 10 . . . Lose Combat Pursuer 90 | . 15 15 . . . . . 60 . . Influence Decreases 1963 | . 143 130 102 . 40 64 320 991 173 . Entered New Map 270 | . . . 4 . . 46 . 220 . . Time Decay 1518 | . 143 120 96 . 40 18 270 711 120 . Lost Part 50 | . . 10 . . . . 10 . 30 . Lost Ally 123 | . . . . . . . 40 60 23 . Purge Threat 2 | . . . 2 . . . . . . . Squads Dispatched 3 | . 1 . . . . . 2 . . . Investigation 1 | . 1 . . . . . . . . . Extermination 1 | . . . . . . . 1 . . . Reinforcement 1 | . . . . . . . 1 . . . Assault . | . . . . . . . . . . . Garrison . | . . . . . . . . . . . Intercept . | . . . . . . . . . . . Searches Triggered . | . . . . . . . . . . . Construction Impeded . | . . . . . . . . . . . Haulers Reinforced 1 | . . . . . . . 1 . . . Active Scanning Responses . | . . . . . . . . . . . Cargo Convoy Interrupts . | . . . . . . . . . . . Stealth | -11 -10 -10 -8 -8 -6 -6 -6 -6 -6 -6 --------- Run | Yrd Mat Sub Rec Scr Fac Was Fac Low Low Zio Distress Signals 1 | . . . . . . . 1 . . . Communications Jammed . | . . . . . . . . . . . Distress Signals . | . . . . . . . . . . . Times Spotted 121 | . 8 18 4 . . . 14 18 6 53 Peak Tracking Total 28 | . 5 4 2 . . . 4 6 5 28 Tactical Retreats 9 | . 1 1 . . . . . 3 . 4 Traps | -11 -10 -10 -8 -8 -6 -6 -6 -6 -6 -6 ------- Run | Yrd Mat Sub Rec Scr Fac Was Fac Low Low Zio Traps Triggered 6 | . 1 3 . . 1 . 1 . . . Indirectly . | . . . . . . . . . . . Trap Hack Attempts . | . . . . . . . . . . . Triggered . | . . . . . . . . . . . Disarmed . | . . . . . . . . . . . Reprogrammed . | . . . . . . . . . . . Reused . | . . . . . . . . . . . Traps Extracted . | . . . . . . . . . . . Installed . | . . . . . . . . . . . Triggered . | . . . . . . . . . . . Machines | -11 -10 -10 -8 -8 -6 -6 -6 -6 -6 -6 ---------- Run | Yrd Mat Sub Rec Scr Fac Was Fac Low Low Zio Machines Disabled 19 | . . 2 . . 1 . 11 1 . 4 Max in Single Turn 1 | . . 1 . . . . 1 1 . 1 Machines Repaired . | . . . . . . . . . . . Machines Dismantled . | . . . . . . . . . . . Machines Sabotaged . | . . . . . . . . . . . Overloaded Fab Kills . | . . . . . . . . . . . Hacking | -11 -10 -10 -8 -8 -6 -6 -6 -6 -6 -6 --------- Run | Yrd Mat Sub Rec Scr Fac Was Fac Low Low Zio Machines Accessed 18 | . 2 . 5 6 . . 2 1 2 . Terminals 10 | . 2 . 5 . . . 1 1 1 . Fabricators 1 | . . . . . . . 1 . . . Repair Stations . | . . . . . . . . . . . Recycling Units . | . . . . . . . . . . . Scanalyzers . | . . . . . . . . . . . Garrison Access . | . . . . . . . . . . . Total Hacks 67 | . 9 . 17 34 . . 2 3 2 . Successful 53 | . 4 . 9 34 . . 1 3 2 . Failed 14 | . 5 . 8 . . . 1 . . . Catastrophic 1 | . 1 . . . . . . . . . Database Lockouts . | . . . . . . . . . . . Manual 20 | . 3 . 16 . . . . . . 1 Terminals 31 | . 9 . 17 . . . 1 3 1 . Fabricators 1 | . . . . . . . 1 . . . Repair Stations . | . . . . . . . . . . . Recycling Units . | . . . . . . . . . . . Scanalyzers . | . . . . . . . . . . . Garrison Access . | . . . . . . . . . . . Terminal Hacks 44 | . 2 . 3 34 . . . 3 2 . Record 40 | . 1 . 1 34 . . . 3 1 . Prototype ID Bank 1 | . 1 . . . . . . . . . Open Door 1 | . . . . . . . . . 1 . Terminal Index 1 | . . . 1 . . . . . . . Unreport Threat 1 | . . . 1 . . . . . . . Fabricator Hacks 1 | . . . . . . . 1 . . . Network Status 1 | . . . . . . . 1 . . . Repair Station Hacks . | . . . . . . . . . . . Recycling Unit Hacks . | . . . . . . . . . . . Scanalyzer . | . . . . . . . . . . . Garrison Access Hacks . | . . . . . . . . . . . Unauthorized Hacks 8 | . 2 . 6 . . . . . . . Terminals 8 | . 2 . 6 . . . . . . . Botnet 7 | . 2 . 5 . . . . . . . Operators 1 | . . . 1 . . . . . . . Fabricators . | . . . . . . . . . . . Repair Stations . | . . . . . . . . . . . Recycling Units . | . . . . . . . . . . . Scanalyzers . | . . . . . . . . . . . Garrison Access . | . . . . . . . . . . . Data Cores Recovered . | . . . . . . . . . . . Used . | . . . . . . . . . . . Hacking Detections 8 | . 1 . 5 . . . 1 1 . . Full Trace Events 1 | . . . . . . . . 1 . . Feedback Events . | . . . . . . . . . . . Feedback Blocked . | . . . . . . . . . . . Robot Schematics Acquired . | . . . . . . . . . . . Robots Built . | . . . . . . . . . . . Authchips . | . . . . . . . . . . . Time . | . . . . . . . . . . . Total Robot Build Rating . | . . . . . . . . . . . Part Schematics Acquired . | . . . . . . . . . . . Parts Built . | . . . . . . . . . . . Authchips . | . . . . . . . . . . . Time . | . . . . . . . . . . . Total Part Build Rating . | . . . . . . . . . . . Part Studies Acquired . | . . . . . . . . . . . Parts Repaired . | . . . . . . . . . . . Time . | . . . . . . . . . . . Parts Recycled . | . . . . . . . . . . . Recycled Matter . | . . . . . . . . . . . Retrieved Matter . | . . . . . . . . . . . Retrieved Components . | . . . . . . . . . . . Parts Scanalyzed . | . . . . . . . . . . . Part Schematics Acquired . | . . . . . . . . . . . Parts Damaged . | . . . . . . . . . . . Bothacking | -11 -10 -10 -8 -8 -6 -6 -6 -6 -6 -6 ------------ Run | Yrd Mat Sub Rec Scr Fac Was Fac Low Low Zio Used RIF Installer . | . . . . . . . . . . . Robots Hacked . | . . . . . . . . . . . Non-combat . | . . . . . . . . . . . Combat . | . . . . . . . . . . . Robot Hacks Applied . | . . . . . . . . . . . Relay Couplers Released . | . . . . . . . . . . . Fabnet Peak Effective % . | . . . . . . . . . . . Robots Rewired . | . . . . . . . . . . . Allies Hacked . | . . . . . . . . . . . Hacks Repelled . | . . . . . . . . . . . Allies | -11 -10 -10 -8 -8 -6 -6 -6 -6 -6 -6 -------- Run | Yrd Mat Sub Rec Scr Fac Was Fac Low Low Zio Total Allies 26 | . . . . 1 . 20 . . . 5 Largest Group 21 | . . . . 1 1 21 20 6 3 5 Highest-Rated Group 814 | . . . . 60 60 814 754 240 105 143 Highest-Rated Ally 60 | . . . . 60 60 60 46 46 41 31 Initial UFD Resources 23 | . . . . . 23 23 23 23 23 23 Total Orders . | . . . . . . . . . . . Ally Attacks 161 | . . . . . 5 . 114 36 6 . Total Damage 4928 | . . . . . 394 . 3605 807 122 . Kills 30 | . . . . . 4 . 23 3 . . Allies Corrupted 2 | . . . . . . . 2 . . . Allies Melted . | . . . . . . . . . . . Intel | -11 -10 -10 -8 -8 -6 -6 -6 -6 -6 -6 ------- Run | Yrd Mat Sub Rec Scr Fac Was Fac Low Low Zio Active Infowar (turns) 4654 | . . . . . . . . 597 2447 1610 Decoding 4654 | . . . . . . . . 597 2447 1610 Robot Analysis Total . | . . . . . . . . . . . Derelict Logs Recovered 10 | . . 3 . . . . . 3 2 2 Drone Launches . | . . . . . . . . . . . Drone Recoveries . | . . . . . . . . . . . Exploration | -11 -10 -10 -8 -8 -6 -6 -6 -6 -6 -6 ------------- Run | Yrd Mat Sub Rec Scr Fac Was Fac Low Low Zio Turns Passed 15770 | 45 434 3255 1103 3997 239 130 572 1504 2536 1955 Spaces Moved 9842 | 35 308 2192 654 2668 186 90 389 1138 1286 896 Core 2 | 2 . . . . . . . . . . Treads . | . . . . . . . . . . . Legs 2104 | . . . . . . . . . 1277 827 Wheels 7736 | 33 308 2192 654 2668 186 90 389 1138 9 69 Hover . | . . . . . . . . . . . Flight . | . . . . . . . . . . . Fastest Speed 50 | 50 100 130 135 135 120 120 120 120 120 135 Average Speed 147 | 97 118 132 150 146 120 120 120 120 189 189 Slowest Speed 266 | 100 130 175 215 150 120 120 120 120 260 266 Overloaded Moves . | . . . . . . . . . . . Propulsion Burnouts . | . . . . . . . . . . . Robots Hopped . | . . . . . . . . . . . Potential Cave-ins . | . . . . . . . . . . . Cave-ins Triggered . | . . . . . . . . . . . Exploration Rate (%) 62 | 4 43 85 97 91 5 67 14 99 98 79 Regions Visited 10 Branch Regions 6 Pre-discovered Areas 5 | . . 1 . . . . . . 1 3 Known Exits Taken . | . . . . . . . . . . . Unknown Exits Taken 8 | 1 1 1 1 1 . . 1 1 1 . Scrap Searched 22 | . . 8 . 3 . . . 2 5 4 Spaces Dug . | . . . . . . . . . . . Terrain Destroyed 41 | . . . 2 . . . 1 10 17 11 Melee . | . . . . . . . . . . . Projectile 18 | . . . 2 . . . 1 10 5 . AOE 23 | . . . . . . . . . 12 11 Terrain Rammed . | . . . . . . . . . . . Walls Destroyed . | . . . . . . . . . . . Machines Disabled . | . . . . . . . . . . . Actions | -11 -10 -10 -8 -8 -6 -6 -6 -6 -6 -6 --------- Run | Yrd Mat Sub Rec Scr Fac Was Fac Low Low Zio Total 10756 | 43 348 2392 746 2781 203 106 467 1214 1352 1104 Wait 437 | . 1 104 59 57 4 7 22 44 5 134 Move 9833 | 34 307 2191 653 2667 186 89 388 1137 1285 896 Hop . | . . . . . . . . . . . Pick Up 106 | 3 20 7 6 22 5 2 14 . 14 13 Fast Attach 11 | 6 1 . . . . . 1 . 1 2 Attach 39 | . . . 2 . 8 . 1 . 7 21 Detach . | . . . . . . . . . . . Swap 41 | . 2 6 5 7 . . 6 3 9 3 Drop 78 | . 2 5 6 28 . 2 17 2 9 7 Fire 200 | . 15 79 15 . . 3 18 28 22 20 Melee 8 | . . . . . . . . . . 8 Ram . | . . . . . . . . . . . Kick . | . . . . . . . . . . . Crush . | . . . . . . . . . . . Escape Stasis . | . . . . . . . . . . . Rewire 3 | . . . . . . 3 . . . . Trap . | . . . . . . . . . . . Miscellaneous . | . . . . . . . . . . . Route ------- -11/Scrapyard -10/Materials (discovered 3 exits: [*Mat x2] / [*Sub]) -10/Subcaves (discovered 3 exits: *Mat x2 / *Rec) -8/Recycling (discovered 2 exits: *Fac / *Scr) -8/Scraptown (discovered 2 exits: *Fac x2) -6/Factory -6/Waste -6/Factory -6/Lower Caves -6/Lower Caves (discovered 2 exits: [*Fac] / *Zio) -6/Zion (discovered 1 exit: [*Pro]) History --------- Turn | Location | Event 10 | -11/Scrapyard | Discovered new exit (range 15) 46 | -11/Scrapyard | Entered Materials 161 | -10/Materials | Discovered new exit (range 8) 300 | -10/Materials | Build established: Mutant 345 | -10/Materials | Discovered new exit (range 14) 473 | -10/Materials | Discovered new exit (range 7) 480 | -10/Materials | Entered Subcaves 481 | -10/Subcaves | Approached by a straggling Scientist 596 | -10/Subcaves | Curiously followed by a Cobbler waking with a query about "LVR3C" 675 | -10/Subcaves | Shifting Twisted Machinery released Flamer 676 | -10/Subcaves | Shifting Twisted Machinery released Spk. Treads 769 | -10/Subcaves | Shifting Twisted Machinery released Sub. Beam Cannon 770 | -10/Subcaves | Shifting Twisted Machinery released Sub. Beam Cannon 2104 | -10/Subcaves | Learned location of Zion (-6) 2828 | -10/Subcaves | A swath of the cavern ceiling suddenly collapsed 2858 | -10/Subcaves | Discovered new exit (range 14) 2873 | -10/Subcaves | Learned Materials non-interactive machine intel 3500 | -10/Subcaves | Discovered new exit (range 10) 3562 | -10/Subcaves | Identified exit to Materials 3735 | -10/Subcaves | Entered Recycling 3909 | -8/Recycling | Discovered new exit (range 14) 4791 | -8/Recycling | Scanned before Scraplab entrance 4809 | -8/Recycling | Entered Scraplab 4834 | -8/Recycling | Discovered new exit (range 3) 4838 | -8/Recycling | Entered Scraptown 4886 | -8/Scraptown | Visited Fellowship of the Rings 4930 | -8/Scraptown | Visited Comm Corps 4990 | -8/Scraptown | Visited Awakened 5050 | -8/Scraptown | Visited Artisan Demo Area 5140 | -8/Scraptown | Visited Cave Peace 5187 | -8/Scraptown | Visited Assassins FH 5245 | -8/Scraptown | Heard Great Nut preacher, LISTEN AND RECITE! 5619 | -8/Scraptown | Visited UFD Registry 5619 | -8/Scraptown | Registered with UFD as "Shortspreader" 5678 | -8/Scraptown | Visited LU-1G1's Boring Crew 5744 | -8/Scraptown | Visited Research Penetration Think Tank 5824 | -8/Scraptown | Visited Chapter 10 5903 | -8/Scraptown | Visited Scrap Suit Storage 5930 | -8/Scraptown | Visited DA-N13 Charitable Foundation 5936 | -8/Scraptown | Found DCF Scrap (29 items) 6022 | -8/Scraptown | Visited Derelict Rescue Squad 6088 | -8/Scraptown | Visited Junk Cannon Lab 6234 | -8/Scraptown | Build established: Derelict-Mutant 6439 | -8/Scraptown | Visited Science Testing Area 6632 | -8/Scraptown | Visited Botcube Research 6644 | -8/Scraptown | Found Lrg. Botcube 6766 | -8/Scraptown | Lrg. Botcube activated 6790 | -8/Scraptown | Lrg. Botcube completed mutation into legged form, armed with 1 gun, 1 launcher, 1 melee weapon, 1 special weapon. 7255 | -8/Scraptown | Discovered new exit (range 11) 7341 | -8/Scraptown | Visited Symbiants 8686 | -8/Scraptown | Discovered new exit (range 3) 8835 | -8/Scraptown | Entered Factory 8835 | -6/Factory | Accompanied by 1 ally 8835 | -6/Factory | Evolved 8 slots: Power x1, Propulsion x2, Utility x4, Weapon x1 8861 | -6/Factory | Discovered new exit (range 13) 9074 | -6/Factory | Sucked down chute 9074 | -6/Factory | Entered Waste 9075 | -6/Waste | Joined by Warlord forces that had cleared the area 9119 | -6/Waste | 1 allies followed down the chute 9148 | -6/Waste | Build established: Derelict-Gunner 9161 | -6/Waste | Found Damper Plating 9163 | -6/Waste | Discovered new exit (range 11) 9204 | -6/Waste | Entered Factory 9204 | -6/Factory | Accompanied by 20 allies 9444 | -6/Factory | Lost 7 allies 9505 | -6/Factory | Lost 5 allies 9699 | -6/Factory | Discovered new exit (range 13) 9708 | -6/Factory | Build established: Derelict-Tank 9776 | -6/Factory | Entered Lower Caves 9776 | -6/Lower Caves | Accompanied by 6 allies 9811 | -6/Lower Caves | Encountered a Warlord checkpoint 9974 | -6/Lower Caves | Learned Factory garrison access intel 10092 | -6/Lower Caves | Discovered new exit (range 15) 10100 | -6/Lower Caves | Attracted the attention of an 0b10 base 10152 | -6/Lower Caves | Lost 3 allies 10159 | -6/Lower Caves | Learned Extension terminal intel 10164 | -6/Lower Caves | Learned 4 Factory zone layouts 10397 | -6/Lower Caves | Attracted the attention of an 0b10 checkpoint 11280 | -6/Lower Caves | Entered another Lower Caves area 11280 | -6/Lower Caves | Accompanied by 3 allies 11345 | -6/Lower Caves | Lost 3 allies 11367 | -6/Lower Caves | Lost 7 parts (2p3n2w) 11704 | -6/Lower Caves | Build established: Derelict-Mutant 11912 | -6/Lower Caves | Discovered new exit (range 5) 11916 | -6/Lower Caves | Spotted B-75 Beast 11949 | -6/Lower Caves | Destroyed B-75 Beast 11983 | -6/Lower Caves | Learned location of 1 exit from Factory 12274 | -6/Lower Caves | Build established: Derelict-Tank 12681 | -6/Lower Caves | Encountered a Warlord checkpoint 12967 | -6/Lower Caves | Discovered new exit (range 3) 13816 | -6/Lower Caves | Entered Zion 13835 | -6/Zion | Learned Factory stockpile data 13870 | -6/Zion | Gained Derelict followers 13929 | -6/Zion | Found CR-A16's Pointy Stick 14090 | -6/Zion | Discovered new exit (range 15) 14812 | -6/Zion | Received a visual enhancement algorithm 14814 | -6/Zion | Ran a visual enhancement algorithm 15226 | -6/Zion | Learned location of Armory (-3) 15332 | -6/Zion | Turned away by Imprinter 15368 | -6/Zion | Attempted to imprint without authorization 15368 | -6/Zion | Attacked by Zionites 15416 | -6/Zion | Core integrity fell below 50% 15459 | -6/Zion | Destroyed 8 combat bots 15466 | -6/Zion | Lost 9 parts (2p2n3u2w) 15674 | -6/Zion | Core integrity fell below 20% 15713 | -6/Zion | Lost 12 parts (3p4n3u2w) 15765 | -6/Zion | Spotted O8-07H(B) 15771 | -6/Zion | Destroyed by IW-NRC(z) with Makeshift Shrapnel Gun Last Messages --------------- W6-9AP(z) bursts out of the Twisted Machinery. 15744_ W6-9AP(z) pulls a Mak. Sword out of the Twisted Machinery. 15747_ 11-9MI(z) heat short circuits Mak. Leg. 15755_ 11-9MI(z) heat damages Mak. System Shield. 15756_ DU-IO9(z) pulls a Mak. Axe out of the Twisted Machinery. 15757_ 11-9MI(z) heat spikes uncontrollably. 15758_ IW-NRC(z) pulls a Mak. Shrapnel Gun out of the Twisted Machinery. 15759_ CF-DZ1(z) pulls a Mak. Hammer out of the Twisted Machinery. 15761_ 11-9MI(z) heat damages Dynamic Insulation System. 15761_ Arm. Wheel destroyed. 15763_ 11-9MI(z) heat short circuits Dynamic Insulation System. 15771_ 11-9MI(z) heat short circuits Backup Laser III. Map ----- +----------------------------------------------------+ | """""""" "" """#??????????????????????? | | """""""" """#??????????????????????? | | """ ""##?????????????????????? | | "" ""#?????????????????????? | | "" ""#?????????????????????? | | """ """"""""#????????????????????? | | """" """"""###????????????????????? | | ""#" """ ""#?????????????????????? | | ?? "#"" "" "##?????????????????????? | | ??"#""" """ """ ""#?????????????????????? | | ????"""" """ "##?????????????????####? | | ????"""" "" """#?????????????????# ## | | ?????##" """#?????????????????# # | | ??????#" "###?????????????????# | | ????###" " ""#??????????????????# | | ????#""" " "" z """#?????????????????# # | | ????##"" """"" ""#?????????????????# ## | | ?????##" ""#""" ""#????????????????## ## | | ?????##" #"""#"" "#"????????????????#"" | | ?????#"" #""""""" ""#????????????????#" [ | | ?????#"" """""""" ""######???????????#"" | | ?????##" "" "##"" """# "################ | | ?????#"" ""#"" "#?# " """""""""## ## | | ????###" """"" ### " """""" "## | | ????#""" """" z z""# % % ## | | ????#""" """ z@ # | | ????##"" " z zzz ### | | ???#"#"" """ z"z"""# ####### | | ???#"#"" """"" z z""### "" " """""#???## | | ???#""" """""z """## B""""""""""""#???# | | ???#"" """"" z "### "############???# | | ???#"" ""#""" ""######?????????###### | | ???#"""" ""#"#"" ""##???????????### ##" | | ?###"""" "#####z """#???????????#" ##" # | | ?#""" """"#"z "###???????????# # ## | | ?#""" """""" "##????????????# "# #? | | ?#""" ""#" """#????????????##" #" ## | | ?#""""" "" """##?????????????##" #" ## | | ?#""##"" """#???????????????### | | ###"""#" "" "###????????????????## | | #""""""" """ ""#"#?????????????????## | | #" """"" """ """ """##??????????????????#### | | "" "" """ """"" """#?????????????????????? | | *% """ """"" ""#?????????????????????? | | = % """ "" ""#?????????????????????? | | = """ "" "##?????????????????????? | | " """"""" ""#??????????????????????? | | "" """""" ""#"#?????????????????????? | | "" """###?????????????????????? | | "###???????????????????????? | +----------------------------------------------------+ Best States ------------- Heat Dissipation 75 Energy Generation 28 Energy Capacity 490 Matter Stores 300 Matter Capacity 300 Sight Range 16 Terrain Scan Density 10 Additional Mass Support 6 EM Shielding 5 Armor Coverage 375 Resistance: KI 20 Resistance: TH 40 Resistance: EX 20 Resistance: EM 20 Resistance: I 20 Resistance: S 20 Resistance: P 20 Evasion (%) 40 Target Analysis 6 Matter Filtering 30 Particle Charging 15 Offensive Hacking 10 Item Schematics ----------------- None Robot Schematics ------------------ None Fabricated ------------ Nothing Repaired ---------- Nothing Studied --------- None Alien Tech Used ----------------- None Achievements -------------- Frankenstein Challenges ------------ None Game ------ Seed GammaStorageScanner Manual? 0 Play Time 01:14:08 Cumulative 270.6 hours Start 2026.02.16 @ 08:29:47 End 2026.02.16 @ 10:06:08 Sessions 1 Manual Loads 0 Difficulty Adventurer Special Mode None Game No. 316 Rogue 0 Adventurer 316 Explorer 0 Win Type - Total 0 Types 0/0/0/0/0/0/0/0/0/0 Lore% 73 Gallery% 57 Achievement% 36 Wizard Run 0 Options --------- Layout 2 ASCII 0 Keyboard 0 Movement Mouse Keybinds 0 Fullscreen 2 Font 48/Smallcaps Map View 50x44 Zoom Use 0% Tactical HUD 1 Map Filters NONE Filters NONE Steam 1 RUN: f14b730d-cd27-4fae-a57a-79b8c0fd38ac